[Event "ONJK 2024 ABC"]
[Site "Velp, Netherlands"]
[Date "2024.08.03"]
[Round "2.8"]
[White "Van Deelen, Luca"]
[Black "Musabayev, Maxim"]
[Result "0-1"]
[TimeControl "90 minutes + 30 seconds"]
[WhiteElo "1662"]
[BlackElo "1824"]

1. e4 {[%clk 01:30:57]} {[%emt 00:00:02]} e5 {[%clk 01:30:59]} {[%emt
00:00:03]} 2. Bc4 {[%clk 01:31:17]} {[%emt 00:00:10]} Bc5 {[%clk 01:30:43]}
{[%emt 00:00:46]} 3. Nc3 {[%clk 01:31:17]} {[%emt 00:00:28]} Nf6 {[%clk
01:30:59]} {[%emt 00:00:15]} 4. d3 {[%clk 01:31:27]} {[%emt 00:00:21]} h6
{[%clk 01:31:05]} {[%emt 00:00:24]} 5. Nf3 {[%clk 01:30:12]} {[%emt 00:01:44]}
d6 {[%clk 01:31:10]} {[%emt 00:00:26]} 6. h3 {[%clk 01:30:38]} {[%emt
00:00:04]} Nc6 {[%clk 01:31:36]} {[%emt 00:00:04]} 7. O-O {[%clk 01:29:57]}
{[%emt 00:01:10]} Be6 {[%clk 01:32:01]} {[%emt 00:00:06]} 8. Bb3 {[%clk
01:29:16]} {[%emt 00:01:10]} O-O {[%clk 01:31:40]} {[%emt 00:00:52]} 9. Ne2
{[%clk 01:27:41]} {[%emt 00:02:05]} d5 {[%clk 01:31:33]} {[%emt 00:00:37]} 10.
exd5 {[%clk 01:25:36]} {[%emt 00:02:34]} Bxd5 {[%clk 01:31:46]} {[%emt
00:00:17]} 11. Ng3 {[%clk 01:23:43]} {[%emt 00:02:23]} Re8 {[%clk 01:31:00]}
{[%emt 00:01:17]} 12. Be3 {[%clk 01:21:25]} {[%emt 00:02:48]} Bb6 {[%clk
01:29:48]} {[%emt 00:01:42]} 13. Re1 {[%clk 01:16:03]} {[%emt 00:05:51]} Qd6
{[%clk 01:19:42]} {[%emt 00:10:36]} 14. Nf5 {[%clk 01:08:31]} {[%emt 00:08:02]}
Qd7 {[%clk 01:18:54]} {[%emt 00:01:19]} 15. Bxd5 {[%clk 01:05:43]} {[%emt
00:03:17]} Nxd5 {[%clk 01:18:39]} {[%emt 00:00:46]} 16. Bxb6 {[%clk 01:02:54]}
axb6 {[%clk 01:18:07]} {[%emt 00:04:21]} 17. Ne3 {[%clk 01:02:54]} {[%emt
00:00:30]} Nf4 {[%clk 01:18:12]} {[%emt 00:00:25]} 18. Ng4 {[%clk 00:55:48]}
{[%emt 00:07:34]} Qd5 {[%clk 01:16:26]} {[%emt 00:02:17]} 19. Ne3 {[%clk
00:51:03]} {[%emt 00:05:16]} Qe6 {[%clk 01:15:14]} {[%emt 00:01:42]} 20. Kh1
{[%clk 00:48:37]} {[%emt 00:02:55]} Rxa2 {[%clk 01:11:32]} {[%emt 00:04:13]} 21.
Rxa2 {[%clk 00:46:36]} {[%emt 00:02:32]} Qxa2 {[%clk 01:11:59]} {[%emt
00:00:03]} 22. Qd2 {[%clk 00:43:17]} {[%emt 00:03:48]} Qe6 {[%clk 01:00:21]}
{[%emt 00:12:09]} 23. c3 {[%clk 00:38:57]} {[%emt 00:04:51]} Qg6 {[%clk
00:51:54]} {[%emt 00:08:56]} 24. Rd1 {[%clk 00:33:27]} {[%emt 00:06:00]} Rd8
{[%clk 00:51:21]} {[%emt 00:01:03]} 25. Ne1 {[%clk 00:33:08]} {[%emt 00:00:49]}
Ne7 {[%clk 00:44:46]} {[%emt 00:07:06]} 26. Ng4 {[%clk 00:31:35]} {[%emt
00:02:03]} Qd6 {[%clk 00:42:32]} {[%emt 00:02:44]} 27. Qe3 {[%clk 00:29:24]}
{[%emt 00:02:42]} Neg6 {[%clk 00:41:29]} {[%emt 00:01:33]} 28. h4 {[%clk
00:27:28]} {[%emt 00:02:25]} h5 {[%clk 00:40:30]} {[%emt 00:01:29]} 29. Nh2
{[%clk 00:27:41]} {[%emt 00:00:16]} Nxh4 {[%clk 00:34:54]} {[%emt 00:06:07]} 30.
g3 {[%clk 00:27:59]} {[%emt 00:00:12]} Qd5+ {[%clk 00:32:36]} {[%emt 00:02:48]}
31. f3 {[%clk 00:24:52]} {[%emt 00:03:35]} Nf5 {[%clk 00:32:28]} {[%emt
00:00:39]} 32. Qg1 {[%clk 00:23:20]} {[%emt 00:01:59]} Nh3 {[%clk 00:30:05]}
{[%emt 00:02:57]} 33. Qg2 {[%clk 00:22:13]} {[%emt 00:01:37]} Ne3 {[%clk
00:30:33]} {[%emt 00:00:02]} 34. Qxh3 {[%clk 00:22:42]} {[%emt 00:00:02]} Nxd1
{[%clk 00:31:00]} {[%emt 00:00:03]} 35. Qxh5 {[%clk 00:22:46]} {[%emt
00:00:26]} Nxb2 {[%clk 00:30:52]} {[%emt 00:00:38]} 36. Ng4 {[%clk 00:22:45]}
{[%emt 00:00:30]} Nxd3 {[%clk 00:29:04]} {[%emt 00:02:18]} 37. Qg5 {[%clk
00:22:38]} {[%emt 00:00:38]} Rd6 {[%clk 00:28:45]} {[%emt 00:00:48]} 38. Nxd3
{[%clk 00:23:05]} {[%emt 00:00:03]} Qxf3+ {[%clk 00:28:34]} {[%emt 00:00:41]}
39. Kh2 {[%clk 00:23:30]} {[%emt 00:00:05]} Qxd3 {[%clk 00:28:08]} {[%emt
00:00:56]} 40. Nxe5 {[%clk 00:23:28]} {[%emt 00:00:33]} Qe2+ {[%clk 00:28:09]}
{[%emt 00:00:28]} 0-1

[Event "ONJK 2024 ABC"]
[Site "Velp, Netherlands"]
[Date "2024.08.03"]
[Round "2.9"]
[White "Zhezheria, Maksym"]
[Black "De Rycke, Killian"]
[Result "0-1"]
[TimeControl "90 minutes + 30 seconds"]
[WhiteElo "1626"]
[BlackElo "1751"]

1. d4 {[%clk 01:30:53]} {[%emt 00:00:06]} e6 {[%clk 01:30:06]} {[%emt
00:00:54]} 2. c4 {[%clk 01:30:53]} {[%emt 00:00:32]} d5 {[%clk 01:30:03]}
{[%emt 00:00:32]} 3. e3 {[%clk 01:30:58]} {[%emt 00:00:25]} c5 {[%clk
01:28:19]} {[%emt 00:02:14]} 4. cxd5 {[%clk 01:31:07]} {[%emt 00:00:21]} exd5
{[%clk 01:27:50]} {[%emt 00:01:00]} 5. Nf3 {[%clk 01:31:08]} {[%emt 00:00:29]}
Nc6 {[%clk 01:26:53]} {[%emt 00:01:26]} 6. Bb5 {[%clk 01:30:56]} {[%emt
00:00:42]} Nf6 {[%clk 01:25:03]} {[%emt 00:02:20]} 7. Ne5 {[%clk 01:29:02]}
{[%emt 00:02:24]} Bd7 {[%clk 01:17:46]} {[%emt 00:07:48]} 8. Bxc6 {[%clk
01:26:57]} {[%emt 00:02:35]} Bxc6 {[%clk 01:16:55]} {[%emt 00:01:21]} 9. Nxc6
{[%clk 01:27:12]} {[%emt 00:00:15]} bxc6 {[%clk 01:17:14]} {[%emt 00:00:11]} 10.
dxc5 {[%clk 01:27:38]} {[%emt 00:00:04]} Bxc5 {[%clk 01:16:31]} {[%emt
00:01:13]} 11. O-O {[%clk 01:26:11]} {[%emt 00:01:56]} O-O {[%clk 01:16:26]}
{[%emt 00:00:35]} 12. Qc2 {[%clk 01:26:31]} {[%emt 00:00:10]} Qd6 {[%clk
01:08:12]} {[%emt 00:08:44]} 13. a3 {[%clk 01:25:52]} {[%emt 00:01:10]} Ng4
{[%clk 01:02:13]} {[%emt 00:06:28]} 14. g3 {[%clk 01:25:13]} {[%emt 00:01:09]}
Ne5 {[%clk 00:39:37]} {[%emt 00:23:06]} 15. Nd2 {[%clk 01:23:07]} {[%emt
00:02:36]} Bb6 {[%clk 00:37:39]} {[%emt 00:02:29]} 16. b3 {[%clk 01:17:32]}
{[%emt 00:06:06]} Qh6 {[%clk 00:27:14]} {[%emt 00:10:54]} 17. Bb2 {[%clk
01:15:30]} {[%emt 00:02:33]} Ng4 {[%clk 00:25:20]} {[%emt 00:02:24]} 18. Nf3
{[%clk 01:15:50]} {[%emt 00:00:10]} Rae8 {[%clk 00:13:52]} {[%emt 00:12:00]} 19.
Rae1 {[%clk 01:15:27]} {[%emt 00:00:50]} Qh5 {[%clk 00:13:12]} {[%emt
00:01:10]} 20. Qc3 {[%clk 01:11:57]} {[%emt 00:04:00]} Nf6 {[%clk 00:11:17]}
{[%emt 00:02:25]} 21. Nd2 {[%clk 01:05:54]} {[%emt 00:06:34]} Re6 {[%clk
00:11:00]} {[%emt 00:00:47]} 22. e4 {[%clk 01:04:22]} {[%emt 00:02:03]} Rfe8
{[%clk 00:09:26]} {[%emt 00:02:04]} 23. e5 {[%clk 01:02:21]} {[%emt 00:02:31]}
Ng4 {[%clk 00:08:41]} {[%emt 00:01:15]} 24. Nf3 {[%clk 01:01:43]} {[%emt
00:01:07]} d4 {[%clk 00:08:07]} {[%emt 00:01:04]} 25. Qc2 {[%clk 00:45:36]}
{[%emt 00:16:37]} Nxe5 {[%clk 00:05:53]} {[%emt 00:02:45]} 26. Nxe5 {[%clk
00:45:53]} {[%emt 00:00:13]} Rxe5 {[%clk 00:06:06]} {[%emt 00:00:16]} 27. Rxe5
{[%clk 00:46:11]} {[%emt 00:00:12]} Qxe5 {[%clk 00:06:32]} {[%emt 00:00:04]} 28.
Qxc6 {[%clk 00:46:35]} {[%emt 00:00:07]} h6 {[%clk 00:06:47]} {[%emt 00:00:14]}
29. Qa4 {[%clk 00:45:34]} {[%emt 00:01:31]} Qe4 {[%clk 00:06:20]} {[%emt
00:00:54]} 30. Qb4 {[%clk 00:29:23]} {[%emt 00:16:45]} Qd5 {[%clk 00:04:38]}
{[%emt 00:02:11]} 31. Rc1 {[%clk 00:23:24]} {[%emt 00:06:30]} d3 {[%clk
00:04:19]} {[%emt 00:00:48]} 32. Qg4 {[%clk 00:22:51]} {[%emt 00:01:03]} g6
{[%clk 00:04:05]} {[%emt 00:00:44]} 33. Rc8 {[%clk 00:21:54]} {[%emt 00:01:27]}
Bd8 {[%clk 00:03:16]} {[%emt 00:01:19]} 34. Bc3 {[%clk 00:12:23]} {[%emt
00:10:01]} d2 {[%clk 00:03:27]} {[%emt 00:00:20]} 35. Bxd2 {[%clk 00:12:05]}
{[%emt 00:00:48]} Qxd2 {[%clk 00:03:54]} {[%emt 00:00:03]} 36. Kg2 {[%clk
00:12:19]} {[%emt 00:00:16]} Qd5+ {[%clk 00:04:13]} {[%emt 00:00:11]} 37. Kh3
{[%clk 00:09:56]} {[%emt 00:02:53]} Qxb3 {[%clk 00:03:39]} {[%emt 00:01:04]} 38.
Qd4 {[%clk 00:10:03]} {[%emt 00:00:24]} Qe6+ {[%clk 00:03:57]} {[%emt
00:00:11]} 39. Qg4 {[%clk 00:10:27]} {[%emt 00:00:06]} Qxg4+ {[%clk 00:04:07]}
{[%emt 00:00:21]} 40. Kxg4 {[%clk 00:10:52]} {[%emt 00:00:05]} h5+ {[%clk
00:04:15]} {[%emt 00:00:21]} 41. Kf3 {[%clk 00:11:13]} {[%emt 00:00:09]} Kf8
{[%clk 00:04:33]} {[%emt 00:00:13]} 42. a4 {[%clk 00:10:32]} {[%emt 00:01:11]}
Bb6 {[%clk 00:04:45]} {[%emt 00:00:18]} 43. Rc4 {[%clk 00:10:52]} {[%emt
00:00:10]} Rd8 {[%clk 00:04:47]} {[%emt 00:00:27]} 44. Ke2 {[%clk 00:09:23]}
{[%emt 00:01:59]} Rd4 {[%clk 00:04:34]} {[%emt 00:00:42]} 45. Rxd4 {[%clk
00:09:52]} {[%emt 00:00:03]} Bxd4 {[%clk 00:04:48]} {[%emt 00:00:16]} 46. f3
{[%clk 00:10:13]} {[%emt 00:00:09]} Ke7 {[%clk 00:04:20]} {[%emt 00:00:57]} 47.
Kd3 {[%clk 00:10:38]} {[%emt 00:00:06]} Bg1 {[%clk 00:04:30]} {[%emt 00:00:20]}
48. h3 {[%clk 00:11:06]} {[%emt 00:00:02]} Kd6 {[%clk 00:04:23]} {[%emt
00:00:37]} 49. Ke4 {[%clk 00:10:58]} {[%emt 00:00:38]} Ke6 {[%clk 00:04:07]}
{[%emt 00:00:46]} 50. g4 {[%clk 00:09:27]} {[%emt 00:02:01]} h4 {[%clk
00:03:01]} {[%emt 00:01:36]} 51. Kf4 {[%clk 00:09:32]} {[%emt 00:00:25]} Kd5
{[%clk 00:02:15]} {[%emt 00:01:16]} 52. Kg5 {[%clk 00:09:36]} {[%emt 00:00:25]}
Ke5 {[%clk 00:01:11]} {[%emt 00:01:34]} 53. f4+ {[%clk 00:07:41]} {[%emt
00:02:26]} Ke4 {[%clk 00:00:54]} {[%emt 00:00:46]} 54. Kf6 {[%clk 00:06:59]}
{[%emt 00:01:13]} Kxf4 {[%clk 00:01:08]} {[%emt 00:00:16]} 55. Kxf7 {[%clk
00:07:24]} {[%emt 00:00:06]} g5 {[%clk 00:01:13]} {[%emt 00:00:25]} 56. Kg6
{[%clk 00:07:37]} {[%emt 00:00:16]} Be3 {[%clk 00:01:36]} {[%emt 00:00:06]} 57.
a5 {[%clk 00:07:07]} {[%emt 00:01:02]} Kg3 {[%clk 00:02:00]} {[%emt 00:00:06]}
58. Kf5 {[%clk 00:07:29]} {[%emt 00:00:07]} Kxh3 {[%clk 00:02:18]} {[%emt
00:00:12]} 0-1

[Event "ONJK 2024 ABC"]
[Site "Velp, Netherlands"]
[Date "2024.08.03"]
[Round "2.10"]
[White "Sapulette, Jay-Giani"]
[Black "Bosma, Jonathan"]
[Result "1-0"]
[TimeControl "90 minutes + 30 seconds"]
[WhiteElo "1746"]
[BlackElo "1668"]

1. e4 {[%clk 01:30:58]} {[%emt 00:00:02]} c5 {[%clk 01:30:56]} {[%emt
00:00:05]} 2. Nf3 {[%clk 01:31:24]} {[%emt 00:00:03]} g6 {[%clk 01:31:22]}
{[%emt 00:00:04]} 3. d4 {[%clk 01:31:52]} {[%emt 00:00:03]} cxd4 {[%clk
01:31:47]} {[%emt 00:00:04]} 4. Nxd4 {[%clk 01:32:19]} {[%emt 00:00:04]} Bg7
{[%clk 01:31:59]} {[%emt 00:00:17]} 5. c4 {[%clk 01:32:45]} {[%emt 00:00:04]}
Nc6 {[%clk 01:32:23]} {[%emt 00:00:07]} 6. Be3 {[%clk 01:33:11]} {[%emt
00:00:04]} Nf6 {[%clk 01:31:57]} {[%emt 00:00:55]} 7. Nc3 {[%clk 01:33:13]}
{[%emt 00:00:28]} O-O {[%clk 01:31:48]} {[%emt 00:00:39]} 8. Be2 {[%clk
01:33:33]} {[%emt 00:00:10]} e6 {[%clk 01:30:14]} {[%emt 00:02:04]} 9. Ndb5
{[%clk 01:32:22]} {[%emt 00:01:42]} a6 {[%clk 01:29:38]} {[%emt 00:01:06]} 10.
Nd6 {[%clk 01:32:29]} {[%emt 00:00:22]} Ne8 {[%clk 01:30:01]} {[%emt 00:00:07]}
11. O-O {[%clk 01:32:04]} {[%emt 00:00:56]} Nxd6 {[%clk 01:27:53]} {[%emt
00:02:37]} 12. Qxd6 {[%clk 01:31:23]} {[%emt 00:01:12]} Re8 {[%clk 01:28:06]}
{[%emt 00:00:16]} 13. f4 {[%clk 01:28:55]} {[%emt 00:02:58]} f5 {[%clk
01:27:21]} {[%emt 00:01:15]} 14. e5 {[%clk 01:27:20]} {[%emt 00:02:06]} Bf8
{[%clk 01:27:20]} {[%emt 00:00:30]} 15. Qd2 {[%clk 01:27:31]} {[%emt 00:00:19]}
d6 {[%clk 01:27:08]} {[%emt 00:00:42]} 16. exd6 {[%clk 01:24:23]} {[%emt
00:03:38]} Qxd6 {[%clk 01:26:34]} {[%emt 00:01:05]} 17. Qxd6 {[%clk 01:24:41]}
{[%emt 00:00:12]} Bxd6 {[%clk 01:26:58]} {[%emt 00:00:06]} 18. c5 {[%clk
01:25:03]} {[%emt 00:00:07]} Bc7 {[%clk 01:26:51]} {[%emt 00:00:37]} 19. Rad1
{[%clk 01:22:44]} {[%emt 00:02:50]} e5 {[%clk 01:26:40]} {[%emt 00:00:40]} 20.
Bc4+ {[%clk 01:21:57]} {[%emt 00:01:17]} Be6 {[%clk 01:25:48]} {[%emt
00:01:23]} 21. Nd5 {[%clk 01:20:56]} {[%emt 00:01:31]} Bd8 {[%clk 01:25:38]}
{[%emt 00:00:39]} 22. Nb6 {[%clk 01:02:18]} {[%emt 00:19:09]} Bxb6 {[%clk
01:24:38]} {[%emt 00:01:30]} 23. Bxe6+ {[%clk 01:02:21]} {[%emt 00:00:27]} Rxe6
{[%clk 01:24:54]} {[%emt 00:00:14]} 24. cxb6 {[%clk 01:02:47]} {[%emt
00:00:03]} e4 {[%clk 01:23:39]} {[%emt 00:01:45]} 25. Rd7 {[%clk 01:01:28]}
{[%emt 00:01:49]} Rd8 {[%clk 01:19:36]} {[%emt 00:04:33]} 26. Rxd8+ {[%clk
00:57:58]} {[%emt 00:04:00]} Nxd8 {[%clk 01:19:59]} {[%emt 00:00:07]} 27. Rd1
{[%clk 00:58:22]} {[%emt 00:00:06]} Nc6 {[%clk 01:19:34]} {[%emt 00:00:56]} 28.
Bc5 {[%clk 00:50:46]} {[%emt 00:08:06]} Nb8 {[%clk 01:17:37]} {[%emt 00:02:26]}
29. Rd8+ {[%clk 00:50:53]} {[%emt 00:00:23]} Kf7 {[%clk 01:17:55]} {[%emt
00:00:11]} 30. Rxb8 {[%clk 00:51:03]} {[%emt 00:00:20]} Rc6 {[%clk 01:16:46]}
{[%emt 00:01:39]} 31. Rxb7+ {[%clk 00:51:27]} {[%emt 00:00:06]} Ke6 {[%clk
01:17:12]} {[%emt 00:00:04]} 32. Rc7 {[%emt 00:00:56]} 1-0

[Event "ONJK 2024 ABC"]
[Site "Velp, Netherlands"]
[Date "2024.08.03"]
[Round "2.11"]
[White "Janssen, Thijn"]
[Black "Henckens, Elof"]
[Result "0-1"]
[TimeControl "90 minutes + 30 seconds"]
[WhiteElo "1465"]
[BlackElo "1707"]

1. e4 {[%clk 01:30:57]} {[%emt 00:00:01]} e5 {[%clk 01:30:54]} {[%emt
00:00:09]} 2. Nf3 {[%clk 01:31:19]} {[%emt 00:00:07]} Nf6 {[%clk 01:31:21]}
{[%emt 00:00:02]} 3. Bc4 {[%clk 01:31:41]} {[%emt 00:00:08]} Nxe4 {[%clk
01:28:46]} {[%emt 00:03:04]} 4. Nc3 {[%clk 01:30:02]} {[%emt 00:02:09]} Nf6
{[%clk 01:13:22]} {[%emt 00:15:54]} 5. Nxe5 {[%clk 01:30:02]} {[%emt 00:00:30]}
d5 {[%clk 01:13:35]} {[%emt 00:00:18]} 6. Qe2 {[%clk 01:28:53]} {[%emt
00:01:36]} Be7 {[%clk 01:12:39]} {[%emt 00:01:28]} 7. Bb3 {[%clk 01:28:51]}
{[%emt 00:00:33]} O-O {[%clk 01:10:58]} {[%emt 00:02:10]} 8. d4 {[%clk
01:29:15]} {[%emt 00:00:07]} Re8 {[%clk 01:07:31]} {[%emt 00:03:56]} 9. O-O
{[%clk 01:29:21]} {[%emt 00:00:23]} c6 {[%clk 01:04:40]} {[%emt 00:03:24]} 10.
Re1 {[%clk 01:28:50]} {[%emt 00:01:00]} Bb4 {[%clk 01:00:02]} {[%emt 00:05:07]}
11. Qf3 {[%clk 01:28:29]} {[%emt 00:00:53]} h6 {[%clk 00:50:03]} {[%emt
00:10:28]} 12. Bd2 {[%clk 01:27:45]} {[%emt 00:01:14]} Be6 {[%clk 00:43:40]}
{[%emt 00:06:52]} 13. a3 {[%clk 01:26:32]} {[%emt 00:01:45]} Bxc3 {[%clk
00:43:13]} {[%emt 00:00:56]} 14. Bxc3 {[%emt 00:01:46]} Ne4 {[%clk 00:42:36]}
15. Rad1 {[%clk 01:24:46]} {[%emt 00:02:08]} Nd7 {[%clk 00:39:33]} {[%emt
00:03:31]} 16. h3 {[%clk 01:19:26]} {[%emt 00:05:52]} Ndf6 {[%clk 00:35:50]}
{[%emt 00:04:11]} 17. Qd3 {[%clk 01:16:18]} {[%emt 00:03:40]} Nxc3 {[%clk
00:30:03]} {[%emt 00:06:16]} 18. Qxc3 {[%clk 01:16:37]} {[%emt 00:00:09]} Ne4
{[%clk 00:30:06]} {[%emt 00:00:27]} 19. Qe3 {[%clk 01:14:28]} {[%emt 00:02:41]}
Kh7 {[%clk 00:25:54]} {[%emt 00:04:42]} 20. c3 {[%clk 01:10:49]} {[%emt
00:04:09]} f6 {[%clk 00:23:14]} {[%emt 00:03:09]} 21. Ng4 {[%clk 01:07:00]}
{[%emt 00:04:21]} Kh8 {[%clk 00:19:51]} {[%emt 00:03:52]} 22. f3 {[%clk
01:01:54]} {[%emt 00:05:37]} Nd6 {[%clk 00:18:10]} {[%emt 00:02:10]} 23. Qf4
{[%clk 00:57:53]} {[%emt 00:04:31]} h5 {[%clk 00:12:08]} {[%emt 00:06:32]} 24.
Nf2 {[%clk 00:57:05]} {[%emt 00:01:18]} Qd7 {[%clk 00:09:54]} {[%emt 00:02:44]}
25. Qh4 {[%clk 00:56:32]} {[%emt 00:01:03]} Bf5 {[%clk 00:08:17]} {[%emt
00:02:05]} 26. g4 {[%clk 00:55:38]} {[%emt 00:01:27]} Bg6 {[%clk 00:07:09]}
{[%emt 00:01:38]} 27. gxh5 {[%clk 00:55:47]} {[%emt 00:00:19]} Bh7 {[%clk
00:07:04]} {[%emt 00:00:35]} 28. h6 {[%clk 00:55:52]} {[%emt 00:00:27]} g5
{[%clk 00:06:19]} {[%emt 00:01:13]} 29. Qh5 {[%clk 00:53:01]} {[%emt 00:03:23]}
Nf5 {[%clk 00:04:28]} {[%emt 00:02:21]} 30. Ng4 {[%clk 00:46:08]} {[%emt
00:07:22]} Rf8 {[%clk 00:03:48]} {[%emt 00:01:11]} 31. Kf2 {[%clk 00:44:46]}
{[%emt 00:01:52]} Nh4 {[%clk 00:03:36]} {[%emt 00:00:42]} 32. Ne5 {[%clk
00:43:25]} {[%emt 00:01:51]} fxe5 {[%clk 00:03:15]} {[%emt 00:00:50]} 33. Re3
{[%clk 00:37:46]} {[%emt 00:06:09]} e4 {[%clk 00:02:58]} {[%emt 00:00:47]} 34.
Rde1 {[%clk 00:29:09]} {[%emt 00:09:07]} Nxf3 {[%clk 00:03:10]} {[%emt
00:00:18]} 35. Rxf3 {[%clk 00:28:34]} {[%emt 00:01:05]} Rxf3+ {[%clk 00:03:31]}
{[%emt 00:00:10]} 36. Ke2 {[%clk 00:28:59]} {[%emt 00:00:04]} Qxh3 {[%clk
00:03:15]} {[%emt 00:00:46]} 37. Qxg5 {[%clk 00:28:39]} {[%emt 00:00:49]} Qg3
{[%clk 00:02:27]} {[%emt 00:01:19]} 38. Qe7 {[%clk 00:26:23]} {[%emt 00:02:46]}
Qf2+ {[%clk 00:02:24]} {[%emt 00:00:33]} 39. Kd1 {[%clk 00:26:36]} {[%emt
00:00:18]} Rd3+ {[%clk 00:02:49]} {[%emt 00:00:03]} 40. Kc1 {[%clk 00:26:48]}
{[%emt 00:00:18]} Qxe1+ {[%clk 00:03:10]} {[%emt 00:00:09]} 41. Bd1 {[%clk
00:26:35]} {[%emt 00:00:45]} Qxd1# {[%emt 00:00:07]} 0-1